Cogmind - Beta 13 @@@ ROGUE MODE // 2024.04.07 @ 00:47:13 Player: GwenMeow Result: Destroyed by G-47 Trooper with Particle Gun Performance ------------- Evolutions (2) 1000 Regions Visited (3) 600 Robots Destroyed (81) 405 Value Destroyed (2237) 2237 Prototype IDs (2) 40 Alien Tech Used (0) 0 Bonus (141) 141 TOTAL SCORE: 4423 Bonus ------- High Alert Combat Kills 141 Cogmind --------- Core Integrity 0/550 Matter 114/300 Energy 97/100 System Corruption 2% Temperature Cool (9) Movement Core (500) Ox9 Location -8/Materials Parts ------- > --- POWER (1) -------- (None) > --- PROPULSION (4) --- (None) > --- UTILITY (4) ------ Large Storage Unit > --- WEAPON (2) ------- Assault Cannon Heavy Hammer > --- INVENTORY (15) --- Medium Treads Medium Treads Medium Treads Medium Treads Weight Redist. System Visual Processing Unit Sensor Array Signal Interpreter Improved Terrain Scanner Peak State ------------ > --- POWER ------------ Light Nuclear Core > --- PROPULSION ------- Medium Treads Medium Treads Medium Treads Medium Treads > --- UTILITY ---------- Large Storage Unit Improved Targeting Computer Medium Armor Plating Hacking Suite > --- WEAPON ----------- Assault Cannon Assault Cannon > --- INVENTORY -------- Ion Engine Medium Treads Medium Treads Medium Treads Medium Treads Weight Redist. System Visual Processing Unit Sensor Array Signal Interpreter Improved Terrain Scanner Assault Cannon Heavy Hammer [Rating: 36] Favorites ----------- Power Ion Engine Engine Ion Engine Power Core Light Nuclear Core Propulsion Aluminum Leg Treads Medium Treads Leg Aluminum Leg Utility Large Storage Unit Device Weight Redist. System Storage Large Storage Unit Processor Signal Interpreter Hackware Hacking Suite Protection Core Shielding Weapon Assault Rifle Energy Gun Beam Rifle Energy Cannon Light EM Pulse Cannon Ballistic Gun Assault Rifle Ballistic Cannon Light Cannon Launcher Mini Grenade Launcher Impact Weapon Hammer Special Melee Weapon Datajack Build | -11 -10 -9 -8 ------- Run | Yrd Mat Mat Mat Slots Evolved 4 | . . 2 2 Power . | . . . . Propulsion 2 | . . 2 . Utility 2 | . . . 2 Weapon . | . . . . Parts Attached 98 | 7 28 51 12 Power 13 | 2 2 7 2 Engine 12 | 2 2 7 1 Core 1 | . . . 1 Reactor . | . . . . Propulsion 31 | 2 5 20 4 Treads 4 | . . . 4 Leg 27 | 2 5 20 . Wheel . | . . . . Hover . | . . . . Flight . | . . . . Utility 16 | 1 11 2 2 Device 4 | . 4 . . Storage 5 | 1 3 1 . Processor 2 | . 1 . 1 Hackware 1 | . . 1 . Protection 4 | . 3 . 1 Artifact . | . . . . Weapon 38 | 2 10 22 4 Energy Gun 4 | . . 4 . Energy Cannon 5 | . . 5 . Ballistic Gun 10 | 2 5 3 . Ballistic Cannon 5 | . 2 . 3 Launcher 3 | . . 3 . Special Weapon . | . . . . Impact Weapon 10 | . 2 7 1 Slashing Weapon . | . . . . Piercing Weapon . | . . . . Special Melee Weapon 1 | . 1 . . Unidentified Prototypes . | . . . . Parts Lost 26 | . . 16 10 Power 5 | . . 3 2 Propulsion 12 | . . 9 3 Utility 3 | . . . 3 Weapon 6 | . . 4 2 Highest Loss Streak 6 | . . 6 5 To Critical Strikes . | . . . . Average Slot Usage (%) 93 | . 98 90 89 Engine 9 | . 14 8 2 Treads 3 | . . . 28 Leg 30 | . 28 39 5 Storage 11 | . 14 11 9 Processor 5 | . 3 6 7 Hackware 3 | . . 4 6 Protection 3 | . 8 . 6 Energy Gun 2 | . . 4 . Energy Cannon 1 | . . 3 . Ballistic Gun 9 | . 22 2 . Ballistic Cannon 5 | . 5 2 15 Launcher 1 | . . 3 . Impact Weapon 1 | . . 3 1 Naked Turns . | . . . . Heaviest Build 42 | 13 21 34 42 Greatest Support 112 | 20 26 40 112 Greatest Overweight (x) 2 | . 1 2 1 Average Overweight (x) . | . . . . Largest Inventory Capacity 15 | 8 15 15 15 Average Capacity 12 | 6 8 14 15 Most Carried 15 | 3 10 15 12 Average Carried 9 | 1 6 10 10 Final Capacity 15 | 8 10 15 15 Final Carried 10 | 3 9 10 9 Class Distribution -------------------- 59% | Mutant 40% | Scavenger-Mutant Dominant Class ---------------- Mutant | -10/Materials Scavenger-Mutant | -9/Materials Mutant | -8/Materials Resources | -11 -10 -9 -8 ----------- Run | Yrd Mat Mat Mat Matter Collected 2020 | 183 561 1020 256 Remotely . | . . . . Salvage Created 2339 | . 589 1565 185 Parts 132 | . 35 88 9 Haulers Intercepted 4 | . 2 2 . Recyclers Shooed 1 | . . 1 . Parts Field Recycled . | . . . . Retrieved Matter . | . . . . Parts Self-Destructed . | . . . . Prevented . | . . . . Kills | -11 -10 -9 -8 ------- Run | Yrd Mat Mat Mat Combat Hostiles Destroyed 53 | . 13 33 7 Melee 8 | . . 6 2 Guns 17 | . 11 6 . Cannons 13 | . 2 6 5 AOE 13 | . . 13 . Classes Destroyed 13 | . 5 6 2 Worker 8 | . 1 7 . Builder 2 | . . 2 . Tunneler 1 | . . 1 . Hauler 4 | . 2 2 . Recycler 4 | . . 4 . Mechanic 2 | . . 1 1 Operator 2 | . . 2 . Watcher 5 | . 3 1 1 Swarmer 6 | . 3 3 . Grunt 35 | . 10 21 4 Sentry 9 | . . 9 . Hunter 2 | . . . 2 Heavy 1 | . . . 1 Best Kill Streak 10 | . 3 10 3 Combat Bots Only 4 | . 3 4 3 Max Kills in Single Turn 3 | . 2 3 1 Gunslinging 1 | . 1 . . Exploded 3 | . . 3 . Melee 1 | . . 1 1 Uniques/NPCs Destroyed . | . . . . Combat | -11 -10 -9 -8 -------- Run | Yrd Mat Mat Mat Hostile Shots Fired 384 | . 56 198 130 Missed 96 | . 13 52 31 Damage Taken 4739 | . 510 2273 1956 Core 1005 | . 93 357 555 Absorbed by Shields . | . . . . Redirected to Shielding 33 | . 33 . . Regen/Repaired (Parts) 95 | . . 78 17 Core Remaining (%) 57 | 100 62 10 . Volleys Fired 165 | . 53 69 43 Largest 2 | . 2 2 2 Hottest 112 | . 55 112 88 Shots Fired 300 | . 106 121 73 Gun 141 | . 101 40 . Cannon 129 | . 5 51 73 Launcher 30 | . . 30 . Special . | . . . . Kinetic 228 | . 106 49 73 Thermal 12 | . . 12 . Explosive 30 | . . 30 . Electromagnetic 30 | . . 30 . Robot Hit Streak 10 | . 9 10 5 Robot Miss Streak 4 | . 4 4 3 Penetration Max . | . . . . Secondary Targets 1 | . 1 . . Max Gunslinging Chain 1 | . 1 . . Shots Hit Robots 225 | . 72 104 49 Core Hits 125 | . 36 70 19 Critical Kills 3 | . . 3 . Critical Parts Destroyed 3 | . . 3 . Critical Strikes 8 | . 1 7 . Burn 1 | . . 1 . Blast 1 | . 1 . . Smash 6 | . . 6 . Melee Attacks 78 | . 9 59 10 Impact 74 | . 5 59 10 Slashing . | . . . . Piercing . | . . . . Sneak Attacks 14 | . . 13 1 Combat Hostiles . | . . . . Follow-up Attacks . | . . . . Damage Inflicted 5973 | . 829 3947 1197 Guns 1036 | . 718 318 . Cannons 1678 | . 77 611 990 Explosions 1624 | . . 1624 . Melee 1626 | . 34 1394 198 Ramming 9 | . . . 9 Kinetic 2179 | . 795 394 990 Thermal 102 | . . 102 . Explosive 1624 | . . 1624 . Electromagnetic 433 | . . 433 . Impact 1626 | . 34 1394 198 Slashing . | . . . . Piercing . | . . . . Highest Corruption 14 | . . 14 2 Average Corruption 2 | . . 2 2 Corruption Purged . | . . . . Corruption Blocked . | . . . . Effects 16 | . . 14 2 Message Errors 1 | . . 1 . Matter Fused 5 | . . 5 . Heat Flow Errors 3 | . . 2 1 Energy Discharges 4 | . . 4 . Parts Rejected 1 | . . . 1 Parts Fused 1 | . . 1 . Misfires 1 | . . 1 . Overload Shots . | . . . . Overflow Damage 346 | . 12 321 13 Projectiles 12 | . . 6 6 Explosions 46 | . . 46 . Melee 288 | . 12 269 7 Knockbacks 26 | . . 6 20 Impact 2 | . . 2 . Kinetic 21 | . . 4 17 Secondary 3 | . . . 3 Self-Inflicted Damage 228 | . . 228 . Shots 7 | . . 7 . Rammed 5 | . . . 5 Targets Rammed 7 | . . . 7 Kicked . | . . . . Crushed 2 | . . . 2 Highest Temperature 520 | . 35 273 520 Average Temperature 86 | . 10 57 143 Received Heat Transfer 1785 | . 249 906 630 Effects 6 | . . 1 5 Energy Bleed 3 | . . 1 2 Interference 1 | . . . 1 Damage (minor) 1 | . . . 1 Damage (core) 1 | . . . 1 Siege Activations . | . . . . Robots Corrupted 1 | . . 1 . Combat Hostiles 1 | . . 1 . Parts Fried 9 | . 2 7 . Impact Corruptions 14 | . 1 12 1 Robots Melted . | . . . . Combat Hostiles . | . . . . Parts Melted . | . . . . Heat Transferred 333 | . . 333 . Parts Sabotaged . | . . . . Parts Stolen . | . . . . Parts Stripped . | . . . . Power Chain Reactions . | . . . . Alert | -11 -10 -9 -8 ------- Run | Yrd Mat Mat Mat Peak Influence 708 | . 222 708 303 Initial 183 | . . 11 183 Average 243 | . 87 368 208 Maximum Alert Level 3 | . 1 3 1 Low Security (%) 52 | 100 96 21 45 Level 1 25 | . 3 34 54 Level 2 17 | . . 35 . Level 3 4 | . . 8 . Level 4 . | . . . . Level 5 . | . . . . High Security . | . . . . Max Security . | . . . . Squads Dispatched 16 | . 4 8 4 Investigation 9 | . 2 7 . Extermination . | . . . . Reinforcement 7 | . 2 1 4 Assault . | . . . . Garrison . | . . . . Intercept . | . . . . Searches Triggered . | . . . . Construction Impeded . | . . . . Haulers Reinforced . | . . . . Active Scanning Responses . | . . . . Cargo Convoy Interrupts . | . . . . Stealth | -11 -10 -9 -8 --------- Run | Yrd Mat Mat Mat Distress Signals 4 | . 1 2 1 Communications Jammed . | . . . . Distress Signals . | . . . . Times Spotted 88 | . 26 47 15 Peak Tracking Total 6 | . 5 5 6 Tactical Retreats 3 | . 1 . 2 Traps | -11 -10 -9 -8 ------- Run | Yrd Mat Mat Mat Traps Triggered 6 | . 2 3 1 Indirectly . | . . . . Trap Hack Attempts . | . . . . Triggered . | . . . . Disarmed . | . . . . Reprogrammed . | . . . . Reused . | . . . . Traps Extracted . | . . . . Installed . | . . . . Triggered . | . . . . Machines | -11 -10 -9 -8 ---------- Run | Yrd Mat Mat Mat Machines Disabled 9 | . . 8 1 Max in Single Turn 2 | . . 2 1 Machines Repaired . | . . . . Machines Dismantled . | . . . . Machines Sabotaged . | . . . . Overloaded Fab Kills . | . . . . Hacking | -11 -10 -9 -8 --------- Run | Yrd Mat Mat Mat Machines Accessed 20 | . 7 11 2 Terminals 15 | . 6 8 1 Fabricators . | . . . . Repair Stations 3 | . . 2 1 Recycling Units 2 | . 1 1 . Scanalyzers . | . . . . Garrison Access . | . . . . Total Hacks 59 | . 17 35 7 Successful 36 | . 13 19 4 Failed 20 | . 4 15 1 Catastrophic 2 | . . 2 . Database Lockouts 3 | . . 1 2 Manual 15 | . 3 11 1 Terminals 48 | . 16 27 5 Fabricators . | . . . . Repair Stations 7 | . . 5 2 Recycling Units 4 | . 1 3 . Scanalyzers . | . . . . Garrison Access . | . . . . Terminal Hacks 28 | . 12 14 2 Record 7 | . . 5 2 Robot Analysis 1 | . 1 . . Prototype ID Bank 1 | . 1 . . Emergency Access Points 1 | . 1 . . Terminal Index 1 | . 1 . . Alert Level 9 | . 3 6 . Unreport Threat 2 | . . 2 . Locate Traps 2 | . 2 . . Dispatch Records 1 | . 1 . . Maintenance Status 1 | . . 1 . Transport Status 1 | . 1 . . Zone Layout 1 | . 1 . . Fabricator Hacks . | . . . . Repair Station Hacks 4 | . . 2 2 Scan Component 2 | . . 1 1 Repair 2 | . . 1 1 Recycling Unit Hacks 4 | . 1 3 . Recycle Component 1 | . . 1 . Process 1 | . . 1 . Report Inventory 2 | . 1 1 . Scanalyzer . | . . . . Garrison Access Hacks . | . . . . Unauthorized Hacks . | . . . . Terminals . | . . . . Fabricators . | . . . . Repair Stations . | . . . . Recycling Units . | . . . . Scanalyzers . | . . . . Garrison Access . | . . . . Data Cores Recovered 2 | . . 2 . Used . | . . . . Hacking Detections 18 | . 5 11 2 Full Trace Events 10 | . 1 8 1 Feedback Events 1 | . . 1 . Corruption 1 | . . 1 . Feedback Blocked . | . . . . Robot Schematics Acquired . | . . . . Robots Built . | . . . . Authchips . | . . . . Time . | . . . . Total Robot Build Rating . | . . . . Part Schematics Acquired . | . . . . Parts Built . | . . . . Authchips . | . . . . Time . | . . . . Total Part Build Rating . | . . . . Parts Repaired 2 | . . 1 1 Time 52 | . . 26 26 Parts Recycled 1 | . . 1 . Recycled Matter 289 | . . 289 . Retrieved Matter . | . . . . Retrieved Components . | . . . . Parts Scanalyzed . | . . . . Part Schematics Acquired . | . . . . Parts Damaged . | . . . . Bothacking | -11 -10 -9 -8 ------------ Run | Yrd Mat Mat Mat Used RIF Installer . | . . . . Robots Hacked 1 | . 1 . . Non-combat 1 | . 1 . . Combat . | . . . . Robot Hacks Applied 1 | . 1 . . parse_system 1 | . 1 . . Relay Couplers Released . | . . . . Fabnet Peak Effective % . | . . . . Robots Rewired . | . . . . Allies Hacked . | . . . . Hacks Repelled . | . . . . Allies | -11 -10 -9 -8 -------- Run | Yrd Mat Mat Mat Total Allies . | . . . . Largest Group . | . . . . Highest-Rated Group . | . . . . Highest-Rated Ally . | . . . . Total Orders . | . . . . Ally Attacks . | . . . . Total Damage . | . . . . Kills . | . . . . Allies Corrupted . | . . . . Allies Melted . | . . . . Intel | -11 -10 -9 -8 ------- Run | Yrd Mat Mat Mat Robot Analysis Total 1 | . 1 . . Derelict Logs Recovered . | . . . . Drone Launches . | . . . . Drone Recoveries . | . . . . Exploration | -11 -10 -9 -8 ------------- Run | Yrd Mat Mat Mat Turns Passed 4536 | 60 1621 2288 567 Spaces Moved 2805 | 45 1135 1407 218 Core 16 | 16 . . . Treads 178 | . . . 178 Legs 2611 | 29 1135 1407 40 Wheels . | . . . . Hover . | . . . . Flight . | . . . . Fastest Speed 50 | 50 120 120 120 Average Speed 125 | 95 121 123 162 Slowest Speed 260 | 120 190 260 240 Overloaded Moves . | . . . . Propulsion Burnouts . | . . . . Robots Hopped . | . . . . Cave-ins Triggered 1 | . . 1 . Exploration Rate (%) 49 | 4 99 77 19 Regions Visited 3 Branch Regions . Pre-discovered Areas . | . . . . Known Exits Taken 1 | . 1 . . Unknown Exits Taken 2 | 1 . 1 . Scrap Searched . | . . . . Spaces Dug 11 | . 1 10 . Terrain Destroyed 223 | . 1 208 14 Melee 11 | . 1 10 . Projectile 14 | . . . 14 AOE 198 | . . 198 . Terrain Rammed . | . . . . Walls Destroyed . | . . . . Machines Disabled . | . . . . Actions | -11 -10 -9 -8 --------- Run | Yrd Mat Mat Mat Total 3400 | 62 1265 1732 341 Wait 104 | . 1 73 30 Move 2802 | 44 1134 1406 218 Hop . | . . . . Pick Up 97 | 10 23 51 13 Fast Attach . | . . . . Attach 48 | 6 4 27 11 Detach 3 | . 2 1 . Swap 50 | 1 24 24 1 Drop 46 | 1 15 22 8 Fire 165 | . 53 69 43 Melee 78 | . 9 59 10 Ram . | . . . . Kick . | . . . . Crush 7 | . . . 7 Escape Stasis . | . . . . Rewire . | . . . . Trap . | . . . . Miscellaneous . | . . . . Route ------- -11/Scrapyard -10/Materials (discovered 5 exits: *Mat x3 / *Min / [*Sub]) -9/Materials (discovered 2 exits: *Mat / [*Min]) -8/Materials History --------- Turn | Location | Event 6 | -11/Scrapyard | Discovered new exit (range 15) 61 | -11/Scrapyard | Entered Materials 144 | -10/Materials | Discovered new exit (range 7) 268 | -10/Materials | Discovered new exit (range 5) 315 | -10/Materials | Build established: Mutant 669 | -10/Materials | Discovered new exit (range 5) 915 | -10/Materials | Discovered new exit (range 14) 1293 | -10/Materials | Discovered new exit (range 10) 1309 | -10/Materials | Identified exit to Materials 1395 | -10/Materials | Identified exit to Mines 1682 | -10/Materials | Entered another Materials area 1682 | -9/Materials | Evolved 2 slots: Propulsion x2 2126 | -9/Materials | Build established: Scavenger-Mutant 2469 | -9/Materials | Discovered new exit (range 14) 2723 | -9/Materials | Lost 3 parts (2n1w) 2869 | -9/Materials | Repaired Aluminum Leg 2922 | -9/Materials | Central database locked down 3165 | -9/Materials | Core integrity fell below 50% 3181 | -9/Materials | Lost 6 parts (1p3n2w) 3657 | -9/Materials | Build established: Mutant 3711 | -9/Materials | Core integrity fell below 20% 3847 | -9/Materials | Crushed by falling debris 3847 | -9/Materials | System corruption reached 10% 3878 | -9/Materials | Lost 3 parts (2n1w) 3915 | -9/Materials | Discovered new exit (range 16) 3970 | -9/Materials | Entered another Materials area 3970 | -8/Materials | Evolved 2 slots: Utility x2 3979 | -8/Materials | Central database locked down 3979 | -8/Materials | Central database locked down 4194 | -8/Materials | Repaired Ion Engine 4466 | -8/Materials | Lost 5 parts (1p2u2w) 4498 | -8/Materials | Core integrity fell below 50% 4511 | -8/Materials | Core integrity fell below 20% 4537 | -8/Materials | Destroyed by G-47 Trooper with Particle Gun Last Messages --------------- 04507_ Med. Treads destroyed. 04507_ K-01 Serf collects debris. 04507_ Destroyed Targeting Computer. 04507_ H-61 Shepherd system corrupted by crushing effect. 04509_ K-01 Serf collects debris. 04510_ Penetrated by Slug. 04511_ K-01 Serf collects debris. 04515_ H-61 Shepherd misfires. 04520_ U-05 Engineer builds a Wall. 04525_ Med. Treads destroyed. 04525_ Knocked back. 04525_ U-05 Engineer destroyed. 04527_ K-01 Serf collects debris. 04529_ H-61 Shepherd destroyed. 04531_ K-01 Serf collects debris. 04531_ G-47 Trooper knocked back. 04534_ K-01 Serf collects debris. 04535_ G-47 Trooper knocked back. 04537_ K-01 Serf collects debris. Map ----- +----------------------------------------------------+ | | | | | | | | | | | | | | | | | ???????????????????????????????????????????????? | | ???????????????????????????????????????????????? | | ???????????????????????????????????????????????? | | ???????????????????????????????????????????????? | | ???????????????????????????????????????????????? | | ???????????????????????????????????????????????? | | ???????????????????????????????????????????????? | | ???????????????????????????????????????????????? | | ???????????????????????????????????????????????? | | ????????????????###????????????????????????????? | | ?????????????#+## ????????????????????????????? | | ?????????????? ????????????????????????????? | | ??????????????? ????????????????????????????? | | ????????????????# ???????????????????????????? | | ??????????????#### ???????????????????????????? | | ?????????????##! "####??????#???????????????? | | ?????????????#! ############################ | | ????????????#;! %! @ =g! | | ?????????????#! =|% k =g | | ?????????????#! % % % % k | | ?????????????##! ####;#### #####+####?????? | | ??????????????#### ???? # ##?????????????? | | ?????????????????# ????"" !# ##?????????????? | | ?????????????????# ????"" # ##?????????????? | | ?????????????????# ?????"" # #??????????????? | | ?????????????????# ????? # #??????????????? | | ?????????????????# ?????? # #??????????????? | | ?????????????????# ?????? # #??????????????? | | ?????????????????#??????? # #??????????????? | | ?????????????????????????T" # #??????????????? | | ?????????????????????????"" # #??????????????? | | ??????????????????????????? # #??????????????? | | ???????????????????????????## #??????????????? | | ????????????????????????????# #?##???????????? | | ????????????????????????????# # #???????????? | | ????????????????????????????# # #???????????? | | ????????????????????????????# #????????????? | | ????????????????????????????# # #????????????? | | ????????????????????????????# ###????????????? | | ????????????????????????????# #############??? | | ????????????????????????????#^ # """ """ #??? | | ????????????????????????????# # """"""""" #??? | +----------------------------------------------------+ Best States ------------- Heat Dissipation 31 Energy Generation 14 Energy Capacity 265 Matter Stores 300 Matter Capacity 300 Sight Range 16 Terrain Scan Density 10 Additional Mass Support 6 Armor Coverage 225 Core Shielding 20 Weapon Shielding 33 Evasion (%) 55 Targeting Accuracy 6 Recoil Reduction 4 Offensive Hacking 10 Item Schematics ----------------- None Robot Schematics ------------------ None Fabricated ------------ Nothing Alien Tech Used ----------------- None Achievements -------------- Part-time Excavator Party Time Power Corrupts System Compromised Unlikely Earthworm Challenges ------------ None Game ------ Seed NeutronImprinterCutter Manual? 0 Play Time 01:11:49 Cumulative 5.5 hours Start 2024.04.06 @ 21:59:59 End 2024.04.07 @ 00:47:13 Sessions 3 Manual Loads 0 Difficulty Rogue Special Mode None Game No. 10 Rogue 10 Adventurer 0 Explorer 0 Win Type - Total 0 Types 0/0/0/0/0/0/0/0/0 Lore% 3 Gallery% 9 Achievement% 11 Wizard Run 0 Options --------- Layout 1 ASCII 0 Keyboard 0 Movement Mouse Keybinds 0 Fullscreen 1 Font 24/Smallcaps Map View 50x35 Zoom Use 0% Tactical HUD 1 Map Filters NONE Filters NONE Steam 1 RUN: a493fc1b-3487-46b1-a41c-7f733021bc94